fUSD/lending_fUSD_20251225
["ID","MTS","AMOUNT","RATE_DAILY","PERIOD"]
[399701479,1766627470885,-31266.93266011,0.00038972,2]
[399701480,1766627470894,-9012.38796345,0.00038972,4]
[399701481,1766627470904,-1000.0,0.00038973,7]
[399701482,1766627470913,-500.0,0.00038977,30]
[399701483,1766627470923,-204.36206726,0.00038988,54]
[399701484,1766627470933,-250.0,0.00038988,54]
[399701485,1766627470944,-250.0,0.00038988,54]
[399701486,1766627470954,-445.202766,0.00038988,54]
[399701487,1766627470963,-500.0,0.00038988,54]
[399701488,1766627470973,-500.0,0.00038988,54]
[399701489,1766627470982,-250.0,0.00038988,54]
[399701490,1766627470992,-254.70778633,0.00038988,54]
[399701491,1766627471002,-500.0,0.00038988,54]
[399701492,1766627471012,-500.0,0.00038988,54]
[399701493,1766627471022,-500.0,0.00038988,54]
[399701494,1766627471032,-162.380719,0.00038988,54]
[399701495,1766627471041,-411.47110155,0.00038988,54]
[399701496,1766627471051,-559.19188,0.00038988,54]
[399701497,1766627471061,-250.0,0.00038988,54]
[399701498,1766627471070,-151.0,0.00038988,54]
[399701499,1766627471080,-500.0,0.00038988,54]
[399701500,1766627471090,-250.0,0.00038988,54]
[399701501,1766627471100,-537.6845,0.00038988,54]
[399701502,1766627471109,-500.0,0.00038988,54]
[399701503,1766627471120,-151.0,0.00038988,54]
[399701504,1766627471129,-151.0,0.00038988,54]
[399701505,1766627471139,-500.0,0.00038989,30]
[399701506,1766627471149,-151.0,0.00038997,14]
[399701507,1766627471159,-1075.08409877,0.00038998,31]
[399701508,1766627471168,-250.0,0.00038998,30]
[399701509,1766627471177,-311.1,0.00038998,30]
[399701510,1766627471187,-160.0,0.00038998,30]
[399701511,1766627471196,-250.0,0.00038998,30]
[399701512,1766627471208,-429.318,0.00038998,30]
[399701513,1766627471217,-250.0,0.00038998,30]
[399701514,1766627471226,-500.0,0.00038998,30]
[399701515,1766627471236,-500.0,0.00038998,30]
[399701516,1766627471245,-250.0,0.00038998,30]
[399701517,1766627471254,-500.0,0.00038998,30]
[399701518,1766627471264,-500.0,0.00038998,30]
[399701519,1766627471273,-500.0,0.00038998,30]
[399701520,1766627471283,-156.587,0.00038998,30]
[399701521,1766627471292,-539.24,0.00038998,30]
[399701522,1766627471301,-250.0,0.00038998,30]
[399701523,1766627471311,-151.0,0.00038998,30]
[399701524,1766627471321,-151.0,0.00038998,30]
[399701525,1766627471331,-500.0,0.00038998,30]
[399701526,1766627471341,-250.0,0.00038998,30]
[399701527,1766627471350,-518.5,0.00038998,30]
[399701528,1766627471359,-500.0,0.00038998,30]
[399701529,1766627471368,-151.0,0.00038998,30]
[399701530,1766627471378,-151.0,0.00038998,30]
[399701531,1766627471388,-455.47808377,0.00038999,2]
[399701532,1766627471398,-300.250913,0.00038999,93]
[399701533,1766627471407,-1256.0,0.00038999,120]
[399701534,1766627471417,-152.0,0.00038999,120]
[399701535,1766627471427,-152.0,0.00038999,120]
[399701536,1766627471436,-836.0,0.00038999,120]
[399701537,1766627471445,-152.0,0.00038999,120]
[399701538,1766627471455,-836.0,0.00038999,120]
[399701539,1766627471464,-154.0,0.00038999,120]
[399701540,1766627471474,-152.0,0.00038999,120]
[399701541,1766627471483,-154.0,0.00038999,120]
[399701542,1766627471493,-836.0,0.00038999,120]
[399701543,1766627471503,-154.0,0.00038999,120]
[399701544,1766627471516,-836.0,0.00038999,120]
[399701545,1766627471530,-836.0,0.00038999,120]
[399701546,1766627471551,-154.0,0.00038999,120]
[399701547,1766627471570,-500.0,0.00038999,30]
[399701548,1766627471585,-836.0,0.00038999,120]
[399701549,1766627471607,-154.0,0.00038999,120]
[399701550,1766627471629,-263.78024452,0.00038999,30]
[399701551,1766627471649,-836.0,0.00038999,120]
[399701552,1766627471662,-154.0,0.00038999,120]
[399701553,1766627471672,-836.0,0.00038999,120]
[399701554,1766627471682,-300.0,0.00038999,31]
[399701555,1766627471697,-250.0,0.00038999,31]
[399701556,1766627471715,-160.0,0.00038999,31]
[399701557,1766627471736,-414.0,0.00038999,31]
[399701558,1766627471747,-250.0,0.00038999,31]
[399701559,1766627471758,-250.0,0.00038999,31]
[399701560,1766627471770,-500.0,0.00038999,31]
[399701561,1766627471780,-500.0,0.00038999,31]
[399701562,1766627471790,-250.0,0.00038999,31]
[399701563,1766627471800,-200.0,0.00038999,31]
[399701564,1766627471811,-500.0,0.00038999,31]
[399701565,1766627471823,-500.0,0.00038999,31]
[399701566,1766627471833,-500.0,0.00038999,31]
[399701567,1766627471844,-151.0,0.00038999,31]
[399701568,1766627471855,-543.0,0.00038999,31]
[399701569,1766627471867,-520.0,0.00038999,31]
[399701570,1766627471876,-543.0,0.00038999,31]
[399701571,1766627471886,-802.51915667,0.00038999,31]
[399701572,1766627471896,-250.0,0.00038999,31]
[399701573,1766627471907,-151.0,0.00038999,31]
[399701574,1766627471919,-151.0,0.00038999,31]
[399701575,1766627471930,-500.0,0.00038999,31]
[399701576,1766627471945,-250.0,0.00038999,31]
[399701577,1766627471955,-500.0,0.00038999,31]
[399701578,1766627471964,-849.12691588,0.00038999,31]
[399701579,1766627471977,-500.0,0.00038999,31]
[399701580,1766627471987,-151.0,0.00038999,31]
[399701581,1766627472000,-151.0,0.00038999,31]
[399701582,1766627472015,-1310808.80916467,0.00039,2]
[399701583,1766627472633,-716.99396338,0.00013558,2]
[399701584,1766627473581,1000.0,0.00012422,2]
[399701585,1766627482850,500.0,0.00012416,2]
[399701586,1766627489004,-2500.0,0.00012424,2]
[399701587,1766627506809,-250.0,0.0001289,2]
[399701588,1766627506838,-300.0,0.0001289,2]
[399701589,1766627521601,155.02738573,0.00012416,2]
[399701590,1766627521639,500.0,0.00012416,2]
[399701591,1766627521682,500.0,0.00012416,2]
[399701592,1766627521718,387.47385548,0.00012416,2]
[399701593,1766627521759,500.0,0.00012416,2]
[399701594,1766627521800,500.0,0.00012416,2]
[399701595,1766627521836,500.0,0.00012416,2]
[399701596,1766627521873,546.00406125,0.00012416,2]
[399701597,1766627521911,500.0,0.00012416,2]
[399701598,1766627521953,218.01880277,0.00012416,2]
[399701599,1766627522017,500.0,0.00012416,2]
[399701600,1766627522058,500.0,0.00012416,2]
[399701601,1766627522101,380.0,0.00012416,2]
[399701602,1766627547549,10000.01,0.00012422,2]
[399701603,1766627547572,10000.01,0.00012422,2]
[399701604,1766627547595,2261.6737,0.00012422,2]
[399701605,1766627547784,500.0,0.00012416,2]
[399701606,1766627549433,151.0,0.00012672,2]
[399701607,1766627550004,151.0,0.00012672,2]
[399701608,1766627550600,252.50040685,0.00012672,2]
[399701609,1766627650269,161.45,0.00011529,2]
[399701612,1766627924713,1103.22,7.125e-05,2]
[399701613,1766627924904,1103.22,7.5e-05,2]
[399701614,1766627925108,1103.22,7.875e-05,2]
[399701615,1766627925308,1103.22,8.25e-05,2]
[399701616,1766627925499,1103.22,8.625e-05,2]
[399701617,1766627925684,1006.28589315,9e-05,2]
[399701618,1766627925709,96.93410685,9e-05,2]
[399701619,1766627925884,1103.22,9.375e-05,2]
[399701620,1766627926369,1103.22,9.75e-05,2]
[399701621,1766627926576,1103.22,0.00010125,2]
[399701622,1766627926768,1103.22,0.000105,2]
[399701623,1766627927213,1103.22,0.00010875,2]
[399701624,1766627927256,1103.22,0.0001125,2]
[399701625,1766627927346,1103.22,0.00011625,2]
[399701626,1766627927537,1103.22,0.00012,2]
[399701627,1766627927734,1077.31589315,0.00012374,2]
[399701628,1766627927760,25.90410685,0.00012374,2]
[399701629,1766627927930,1103.22,0.00012749,2]
[399701630,1766628057791,151.0,0.00012749,2]
[399701633,1766628272668,1000.0,0.00012897,2]
[399701634,1766628273377,273.14170357,0.00012897,2]
[399701635,1766628274530,182.09446905,0.00012897,2]
[399701636,1766628275876,151.0,0.00012897,2]
[399701637,1766628276734,213.18893809,0.00012897,2]
[399701638,1766628304310,150.0,0.00012884,2]
[399701650,1766628632088,-286.91,0.00013034,2]
[399701651,1766628632099,-300.0,0.00013052,2]
[399701652,1766628632110,-32.44433313,0.00013071,2]
[399701653,1766628632122,-281.80867599,0.00013071,2]
[399701654,1766628632132,-200.0,0.00013108,2]
[399701655,1766628632142,-35.71720345,0.00013116,2]
[399701656,1766628632167,-264.28279655,0.00013116,2]
[399701657,1766628632177,-500.0,0.00013124,2]
[399701658,1766628632187,-1103.22,0.00013124,2]
[399701659,1766628632197,-297.0594711,0.0001325,2]
[399701660,1766628632207,-216.57035034,0.00013298,2]
[399701661,1766628632219,-83.42964966,0.00013298,2]
[399701662,1766628632229,-300.0,0.00013298,2]
[399701663,1766628632239,-1200.0,0.00013298,2]
[399701664,1766628632253,-671.56347626,0.00013299,2]
[399701665,1766628632265,-591.88176241,0.00013299,2]
[399701666,1766628632277,-286.98,0.00013299,2]
[399701667,1766628632294,-665.18866697,0.00013299,2]
[399701668,1766628632307,-5141.87520505,0.00013299,2]
[399701669,1766628632319,-541.2698356,0.00013299,2]
[399701670,1766628632331,-2332.85146012,0.00013299,2]
[399701671,1766628632371,-832.22856812,0.00013299,2]
[399701680,1766628638178,-177.12660945,0.00012952,2]
[399701681,1766628638189,-75.39897543,0.00013299,2]
[399701682,1766628638202,-378.17299764,0.00013299,2]
[399701683,1766628638229,-4707.47864378,0.00013299,2]
[399701684,1766628638241,-875.29292091,0.00013299,2]
[399701685,1766628638254,-388.82700236,0.00013299,2]
[399701686,1766628638285,-4516.78539756,0.00013299,2]
[399701687,1766628638297,-924124.88767829,0.00013299,2]
[399701688,1766628638340,-802.0,0.00013299,2]
[399701689,1766628638352,-914.21936966,0.00013299,2]
[399701690,1766628638363,-1510.0,0.00013299,2]
[399701691,1766628638375,-7297.19800026,0.00013299,2]
[399701729,1766628640290,-693.79423372,0.00013299,2]
[399701730,1766628640303,-2050.77884625,0.00013299,2]
[399701731,1766628640314,-723.72753373,0.00013299,2]
[399701732,1766628640397,-3239.69013925,0.00013299,2]
[399701733,1766628640408,-2412.76187857,0.00013299,2]
[399701734,1766628640419,-2673.83420814,0.00013299,2]
[399701735,1766628640453,-6865.63692011,0.00013299,2]
[399701736,1766628640465,-24685.67627981,0.00013299,2]
[399701737,1766628640475,-22974.69,0.00013303,2]
[399701738,1766628640485,-166.66,0.00013349,2]
[399701739,1766628640495,-1853.795,0.00013358,2]
[399701740,1766628640505,-209.84858037,0.00013358,2]
[399701741,1766628640516,-449.7640344,0.00013358,2]
[399701742,1766628640526,-46680.95383151,0.00013399,2]
[399701743,1766628640537,-151.0,0.00013449,2]
[399701744,1766628640548,-151.0,0.00013449,2]
[399701745,1766628640558,-151.0,0.00013449,2]
[399701747,1766628640568,-151.0,0.00013449,2]
[399701748,1766628640578,-151.0,0.00013449,2]
[399701749,1766628640587,-151.0,0.00013449,2]
[399701750,1766628640597,-151.0,0.00013449,2]
[399701751,1766628640606,-151.0,0.00013449,2]
[399701752,1766628640616,-151.0,0.00013449,2]
[399701753,1766628640626,-151.0,0.00013449,2]
[399701754,1766628640636,-151.0,0.00013449,2]
[399701755,1766628640645,-151.0,0.00013449,2]
[399701756,1766628640655,-150.0,0.00013456,2]
[399701757,1766628640666,-500.0,0.00013456,2]
[399701758,1766628640676,-500.0,0.00013456,2]
[399701759,1766628640686,-500.0,0.00013456,2]
[399701760,1766628640697,-500.0,0.00013456,2]
[399701761,1766628640707,-500.0,0.00013456,2]
[399701762,1766628640717,-500.0,0.00013456,2]
[399701763,1766628640728,-500.0,0.00013456,2]
[399701764,1766628640738,-500.0,0.00013456,2]
[399701765,1766628640748,-508.91082946,0.00013456,2]
[399701766,1766628640758,-500.0,0.00013456,2]
[399701767,1766628640767,-500.0,0.00013456,2]
[399701768,1766628640778,-500.0,0.00013456,2]
[399701769,1766628640787,-500.0,0.00013456,2]
[399701770,1766628640797,-500.0,0.00013456,2]
[399701771,1766628640807,-500.0,0.00013456,2]
[399701772,1766628640817,-500.0,0.00013456,2]
[399701773,1766628640827,-500.0,0.00013456,2]
[399701774,1766628640837,-500.0,0.00013456,2]
[399701775,1766628640847,-500.0,0.00013456,2]
[399701776,1766628640857,-500.0,0.00013456,2]
[399701777,1766628640867,-500.0,0.00013456,2]
[399701778,1766628640877,-500.0,0.00013456,2]
[399701779,1766628640887,-500.0,0.00013456,2]
[399701780,1766628640897,-500.0,0.00013456,2]
[399701781,1766628640907,-495.71949418,0.00013457,2]
[399701782,1766628640916,-159.07153153,0.00013457,2]
[399701783,1766628640926,-500.0,0.00013457,2]
[399701784,1766628640936,-413.43467787,0.00013457,2]
[399701785,1766628640945,-500.0,0.00013457,2]
[399701786,1766628640955,-2871.919,0.00013457,2]
[399701787,1766628640965,-186.894,0.00013457,2]
[399701788,1766628640976,-43488.5845559,0.00013457,2]
[399701789,1766628640986,-1103.22,0.00013499,2]
[399701790,1766628640996,-245.0,0.00013603,2]
[399701791,1766628641006,-500.0,0.00013698,2]
[399701792,1766628641016,-500.0,0.00013698,2]
[399701793,1766628641026,-500.0,0.00013698,2]
[399701794,1766628641036,-500.0,0.00013698,2]
[399701795,1766628641047,-500.0,0.00013698,2]
[399701796,1766628641056,-500.0,0.00013698,2]
[399701797,1766628641066,-284.02576832,0.00013698,2]
[399701798,1766628641077,-400.99816969,0.00013698,2]
[399701799,1766628641087,-500.0,0.00013698,2]
[399701800,1766628641097,-500.0,0.00013698,2]
[399701801,1766628641107,-500.0,0.00013698,2]
[399701802,1766628641117,-500.0,0.00013698,2]
[399701803,1766628641127,-500.0,0.00013698,2]
[399701804,1766628641137,-500.0,0.00013698,2]
[399701805,1766628641148,-263.78024452,0.00013698,2]
[399701806,1766628641158,-933.23,0.00013699,2]
[399701807,1766628641168,-266.0,0.00013709,2]
[399701808,1766628641178,-1617.0,0.00013737,2]
[399701809,1766628641188,-166.66,0.0001379,2]
[399701810,1766628641197,-198.80019267,0.00013841,2]
[399701811,1766628641207,-1103.22,0.00013874,2]
[399701812,1766628641216,-338.0,0.00013898,2]
[399701813,1766628641226,-230.0,0.00014169,2]
[399701814,1766628641236,-166.66,0.00014231,2]
[399701815,1766628641245,-1103.22,0.00014249,2]
[399701816,1766628641255,-250.0,0.00014337,2]
[399701817,1766628641265,-195.0,0.00014337,2]
[399701818,1766628641274,-195.0,0.00014337,2]
[399701819,1766628641284,-195.0,0.00014337,2]
[399701820,1766628641294,-252.65160818,0.00014337,2]
[399701821,1766628641304,-300.0,0.00014337,2]
[399701822,1766628641313,-195.0,0.00014419,2]
[399701823,1766628641324,-300.0,0.00014419,2]
[399701824,1766628641334,-600.0,0.00014419,2]
[399701825,1766628641344,-600.0,0.00014419,2]
[399701826,1766628641354,-167.96911352,0.00014419,2]
[399701827,1766628641364,-300.0,0.00014419,2]
[399701828,1766628641374,-300.0,0.00014419,2]
[399701829,1766628641386,-442.95974581,0.00014419,2]
[399701830,1766628641401,-1000.0,0.00014509,2]
[399701831,1766628641411,-255.0,0.00014573,2]
[399701832,1766628641421,-420.0,0.00014579,2]
[399701833,1766628641432,-420.0,0.00014579,2]
[399701834,1766628641442,-13773.56,0.0001458,2]
[399701835,1766628641452,-1680.0,0.00014628,2]
[399701836,1766628641462,-166.66,0.00014671,2]
[399701837,1766628641472,-166.66,0.00015112,2]
[399701838,1766628641483,-9632.43,0.0001531,2]
[399701839,1766628641493,-166.66,0.00015553,2]
[399701840,1766628641503,-200.0,0.00015667,2]
[399701841,1766628641513,-433.0,0.00015784,2]
[399701842,1766628641523,-297.05947107,0.00015876,2]
[399701843,1766628641533,-587.0,0.00015983,2]
[399701844,1766628641542,-587.0,0.00015983,2]
[399701845,1766628641552,-46680.95383147,0.00016009,2]
[399701846,1766628641562,-10000.0,0.00016075,2]
[399701847,1766628641572,-2351.0,0.0001609,2]
[399701848,1766628641583,-8243.68,0.00016116,2]
[399701849,1766628641940,-9999.99,0.00016116,2]
[399701850,1766628641951,-299.99,0.00016116,4]
[399701851,1766628641961,-999.99,0.00016116,2]
[399701852,1766628641971,-150.99,0.00016116,2]
[399701853,1766628641981,-150.99,0.00016116,2]
[399701854,1766628641991,-1000.0,0.00016122,2]
[399701855,1766628642001,-500.0,0.00016437,2]
[399701856,1766628642011,-11883.59,0.00016438,2]
[399701857,1766628642021,-250.0,0.00017,2]
[399701858,1766628642031,-736.0,0.00017089,2]
[399701859,1766628642041,-226.01,0.00017144,2]
[399701860,1766628642052,-823.0,0.00017523,2]
[399701861,1766628642062,-823.0,0.00017523,2]
[399701862,1766628642072,-3292.0,0.000177,2]
[399701863,1766628642083,-1000.0,0.00017734,2]
[399701864,1766628642093,-198.59097389,0.00017973,2]
[399701865,1766628642103,-500.0,0.00017973,2]
[399701866,1766628642113,-500.0,0.00017973,2]
[399701867,1766628642123,-530.40868375,0.00017973,2]
[399701868,1766628642133,-500.0,0.00017973,2]
[399701869,1766628642143,-500.0,0.00017973,2]
[399701870,1766628642152,-500.0,0.00017973,2]
[399701871,1766628642162,-500.0,0.00017973,2]
[399701872,1766628642174,-500.0,0.00017973,2]
[399701873,1766628642184,-500.0,0.00017973,2]
[399701874,1766628642194,-500.0,0.00017973,2]
[399701875,1766628642203,-500.38340673,0.00017973,2]
[399701876,1766628642213,-278.0,0.00018011,2]
[399701877,1766628642223,-321.0,0.00018156,2]
[399701878,1766628642232,-377.0,0.0001835,2]
[399701879,1766628642242,-8371.03,0.00018423,2]
[399701880,1766628642252,-297.05947107,0.00018502,2]
[399701881,1766628642262,-1252.0,0.00018515,2]
[399701882,1766628642272,-1000.0,0.00018521,2]
[399701883,1766628642282,-1000.0,0.00018521,2]
[399701884,1766628642291,-1000.0,0.00018521,2]
[399701885,1766628642300,-1000.0,0.00018521,2]
[399701886,1766628642310,-1000.0,0.00018521,2]
[399701887,1766628642320,-1000.0,0.00018521,2]
[399701888,1766628642330,-1000.0,0.00018521,2]
[399701889,1766628642339,-1000.0,0.00018521,2]
[399701890,1766628642349,-1000.0,0.00018521,2]
[399701891,1766628642360,-3281.9,0.00018549,2]
[399701892,1766628642370,-46680.95383147,0.00018618,2]
[399701893,1766628642379,-151.03,0.000188,2]
[399701894,1766628642391,-151.03,0.0001899,2]
[399701895,1766628642401,-300.0,0.00019,2]
[399701896,1766628642411,-129474.39709597,0.00019,2]
[399701897,1766628642421,-427.15912983,0.00019068,2]
[399701898,1766628642431,-1001.72362349,0.00019068,2]
[399701899,1766628642440,-1500.0,0.00019068,2]
[399701900,1766628642451,-1500.0,0.00019068,2]
[399701901,1766628642460,-1500.0,0.00019068,2]
[399701902,1766628642470,-1500.0,0.00019068,2]
[399701903,1766628642480,-1500.0,0.00019068,2]
[399701904,1766628642490,-1505.48427764,0.00019068,2]
[399701905,1766628642500,-1500.0,0.00019068,2]
[399701906,1766628642510,-1152.0,0.00019211,2]
[399701907,1766628642520,-1152.0,0.00019211,2]
[399701908,1766628642530,-1000.0,0.00019346,2]
[399701909,1766628642540,-4609.0,0.00019469,2]
[399701910,1766628642550,-1502.8859502,0.00019616,2]
[399701911,1766628642560,-498.31513644,0.00019616,2]
[399701912,1766628642570,-470.38817896,0.00019616,2]
[399701913,1766628642580,-1447.89649868,0.00019616,2]
[399701914,1766628642590,-1501.39022601,0.00019616,2]
[399701915,1766628642599,-1382.33504396,0.00019616,2]
[399701916,1766628642609,-794.436222,0.0002,2]
[399701917,1766628642619,-2129.0,0.00020049,2]
[399701918,1766628642630,-933.23,0.00020187,2]
[399701919,1766628642640,-3281.9,0.00020408,2]
[399701920,1766628642649,-350.0,0.00021,2]
[399701921,1766628642659,-1613.0,0.00021062,2]
[399701922,1766628642669,-297.05947107,0.00021129,2]
[399701923,1766628642679,-46680.95383147,0.00021228,2]
[399701924,1766628642690,-2000.0,0.000214,2]
[399701925,1766628642700,-6453.0,0.00021416,2]
[399701926,1766628642710,-1144.0,0.00021718,2]
[399701927,1766628642719,-182.84,0.000219,7]
[399701928,1766628642729,-500.0,0.00021917,2]
[399701929,1766628642738,-500.0,0.00021917,2]
[399701930,1766628642748,-500.0,0.00021917,2]
[399701931,1766628642758,-500.0,0.00021917,2]
[399701932,1766628642768,-500.0,0.00021917,2]
[399701933,1766628642779,-500.0,0.00021917,2]
[399701934,1766628642789,-3281.9,0.00022267,2]
[399701935,1766628642799,-151.49,0.000224,7]
[399701936,1766628642810,-151.55467164,0.00022742,2]
[399701937,1766628642821,-455.47808377,0.00022989,2]
[399701938,1766628642830,-2258.0,0.00023091,2]
[399701939,1766628642842,-9035.0,0.00023558,2]
[399701940,1766628642852,-383.68547575,0.000237,9]
[399701941,1766628642862,-297.05947107,0.00023755,2]
[399701942,1766628642873,-46680.95383147,0.00023838,2]
[399701943,1766628642884,-200.0,0.00024087,2]
[399701944,1766628642894,-152.0,0.00024087,2]
[399701945,1766628642904,-150.0,0.00024087,2]
[399701946,1766628642914,-200.0,0.00024087,2]
[399701947,1766628642925,-3281.9,0.00024127,2]
[399701948,1766628642935,-519.34175098,0.00024768,2]
[399701949,1766628642946,-151.03,0.0002479,2]
[399701950,1766628642956,-150.0,0.00024799,2]
[399701951,1766628642966,-33800.5765378,0.000248,2]
[399701952,1766628642976,-151.03,0.0002489,2]
[399701953,1766628642986,-500.0,0.00024899,2]
[399701954,1766628642996,-500.0,0.00024899,2]
[399701955,1766628643006,-521.31,0.000249,2]
[399701956,1766628643016,-326583.131441,0.000249,2]
[399701957,1766628643026,-2065.0,0.00025,2]
[399701958,1766628643035,-150.891,0.00025005,2]
[399701959,1766628643045,-217.814,0.00025005,2]
[399701960,1766628643054,-228.359,0.00025005,2]
[399701961,1766628643064,-250.0,0.00025005,2]
[399701962,1766628643073,-156.406,0.00025005,2]
[399701963,1766628643083,-2000.0,0.000251,2]
[399701964,1766628643093,-188.0,0.00025316,2]
[399701965,1766628643103,-8371.03,0.00025792,2]
[399701966,1766628643113,-523.256,0.00025862,2]
[399701967,1766628643123,-1270.139,0.00025862,2]
[399701968,1766628643133,-6534.0,0.00025876,2]
[399701969,1766628643144,-2430.0,0.00025876,2]
[399701970,1766628643153,-566.276,0.00025876,2]
[399701971,1766628643163,-548.54,0.000259,14]
[399701973,1766628643173,-728.0,0.00025914,2]
[399701974,1766628643182,-3281.9,0.00025986,2]
[399701975,1766628643192,-211.543,0.00026287,2]
[399701976,1766628643201,-250.0,0.00026287,2]
[399701977,1766628643211,-250.0,0.00026287,2]
[399701978,1766628643221,-226.876,0.00026287,2]
[399701979,1766628643231,-166.0,0.00026287,2]
[399701980,1766628643242,-1610.0,0.00026287,2]
[399701981,1766628643251,-618.624,0.00026287,2]
[399701982,1766628643262,-3459.0,0.00026287,2]
[399701983,1766628643274,-151.49,0.000263,7]
[399701984,1766628643284,-297.05947107,0.00026381,2]
[399701985,1766628643294,-46680.95383147,0.00026447,2]
[399701986,1766628643304,-933.23,0.00026676,2]
[399701987,1766628643315,-200.0,0.00026745,2]
[399701988,1766628643325,-207.4,0.00026745,2]
[399701989,1766628643335,-215.0738,0.00026745,2]
[399701990,1766628643346,-223.0315306,0.00026745,2]
[399701991,1766628643356,-231.28369723,0.00026745,2]
[399701992,1766628643366,-239.84119403,0.00026745,2]
[399701993,1766628643376,-248.71531821,0.00026745,2]
[399701994,1766628643385,-257.91778498,0.00026745,2]
[399701995,1766628643399,-267.46074303,0.00026745,2]
[399701996,1766628643410,-277.35679052,0.00026745,2]
[399701997,1766628643420,-150.0,0.00027087,2]
[399701998,1766628643430,-150.0,0.00027369,2]
[399701999,1766628643439,-430.9,0.00027383,2]
[399702000,1766628643450,-1000.0,0.00027396,16]
[399702001,1766628643460,-500.0,0.00027397,20]
[399702002,1766628643469,-430.9,0.00027657,2]
[399702003,1766628643479,-151.03,0.00027661,2]
[399702004,1766628643489,-11883.59,0.00027671,2]
[399702005,1766628643499,-3281.9,0.00027845,2]
[399702006,1766628643509,-430.9,0.00027931,2]
[399702007,1766628643519,-1000.0,0.00027999,30]
[399702008,1766628643529,-150.0,0.00028005,2]
[399702009,1766628643538,-150.0,0.00028005,2]
[399702010,1766628643548,-150.0,0.00028005,2]
[399702011,1766628643558,-150.0,0.00028005,2]
[399702012,1766628643570,-150.0,0.00028005,2]
[399702013,1766628643580,-287.61899177,0.00028114,2]
[399702014,1766628643590,-430.93,0.00028205,2]
[399702015,1766628643600,-2000.0,0.000288,2]
[399702016,1766628643610,-432.0,0.00028862,2]
[399702017,1766628643620,-1263.0,0.00028862,2]
[399702018,1766628643630,-6534.0,0.00028876,2]
[399702019,1766628643640,-2430.0,0.00028876,2]
[399702020,1766628643650,-5686.0,0.000289,2]
[399702021,1766628643659,-297.05947107,0.00029007,2]
[399702022,1766628643669,-46680.95383147,0.00029057,2]
[399702023,1766628643679,-150.0,0.00029287,2]
[399702024,1766628643689,-150.0,0.00029287,2]
[399702025,1766628643699,-150.0,0.00029287,2]
[399702026,1766628643710,-150.0,0.00029287,2]
[399702027,1766628643720,-1610.0,0.00029287,2]
[399702028,1766628643731,-612.0,0.00029287,2]
[399702029,1766628643742,-3459.0,0.00029287,2]
[399702030,1766628643752,-901.5,0.00029336,10]
[399702031,1766628643762,-298.26089446,0.00029483,2]
[399702032,1766628643772,-5526.0,0.000295,3]
[399702033,1766628643782,-3281.9,0.00029704,2]
[399702034,1766628643793,-150.0,0.00030087,2]
[399702035,1766628643802,-151.49,0.000301,7]
[399702036,1766628643812,-5526.0,0.000301,5]
[399702037,1766628643822,-7654.0,0.0003015,5]
[399702038,1766628643832,-182.58,0.000303,30]
[399702039,1766628643843,-500.0,0.00030399,2]
[399702040,1766628643852,-309.29654756,0.00030852,2]